Cogmind - Beta 14 @@@ ROGUE MODE // 2024.10.16 @ 05:01:04 Player: Cereal Killer Result: Destroyed by 13-YY9(R) with Subdweller Shrapnel Launcher Performance ------------- Evolutions (0) 0 Regions Visited (2) 400 Robots Destroyed (20) 100 Value Destroyed (560) 560 Prototype IDs (11) 220 Alien Tech Used (0) 0 Bonus (0) 0 TOTAL SCORE: 1280 Bonus ------- None Cogmind --------- Core Integrity 0/250 Matter 246/300 Energy 170/170 System Corruption 0% Temperature Cool (0) Movement Rolling (110) Location -10/Subcaves Parts ------- > --- POWER (1) -------- Makeshift Power Source > --- PROPULSION (2) --- Subdweller Monowheel Subdweller Monowheel > --- UTILITY (2) ------ Small Storage Unit > --- WEAPON (2) ------- Makeshift Sword > --- INVENTORY (8) ---- Cargo Legs Scrap Shield Makeshift Hacking Suite Makeshift Hacking Suite Subdweller Machine Gun Subdweller Shrapnel Launcher Peak State ------------ > --- POWER ------------ Makeshift Power Source > --- PROPULSION ------- Subdweller Monowheel Subdweller Monowheel > --- UTILITY ---------- Small Storage Unit > --- WEAPON ----------- Battle Cannon Makeshift Sword > --- INVENTORY -------- Cargo Legs Scrap Shield Makeshift Hacking Suite Makeshift Hacking Suite Subdweller Machine Gun Subdweller Shrapnel Launcher [Rating: 18] Favorites ----------- Power Subdweller Power Source Engine Subdweller Power Source Propulsion Subdweller Monowheel Treads Light Treads Wheel Subdweller Monowheel Utility Small Storage Unit Device Structural Scanner Storage Small Storage Unit Weapon Battle Cannon Energy Gun Medium Laser Energy Cannon Subdweller Beam Cannon Ballistic Gun Subdweller Machine Gun Ballistic Cannon Battle Cannon Launcher Subdweller Shrapnel Launcher Slashing Weapon Mining Claw Build | -11 -10 -10 ------- Run | Yrd Mat Sub Slots Evolved . | . . . Power . | . . . Propulsion . | . . . Utility . | . . . Weapon . | . . . Parts Attached 33 | 6 3 24 Power 6 | 1 1 4 Engine 6 | 1 1 4 Core . | . . . Reactor . | . . . Propulsion 10 | 2 . 8 Treads 2 | . . 2 Leg . | . . . Wheel 8 | 2 . 6 Hover . | . . . Flight . | . . . Utility 2 | 1 1 . Device 1 | . 1 . Storage 1 | 1 . . Processor . | . . . Hackware . | . . . Protection . | . . . Artifact . | . . . Weapon 15 | 2 1 12 Energy Gun 4 | 1 . 3 Energy Cannon 1 | . . 1 Ballistic Gun 2 | 1 . 1 Ballistic Cannon 3 | . . 3 Launcher 2 | . . 2 Special Weapon . | . . . Impact Weapon . | . . . Slashing Weapon 3 | . 1 2 Piercing Weapon . | . . . Special Melee Weapon . | . . . Unidentified Prototypes . | . . . Parts Lost 8 | . . 8 Power 2 | . . 2 Propulsion 2 | . . 2 Utility 1 | . . 1 Weapon 3 | . . 3 Highest Loss Streak 3 | . . 3 To Critical Strikes . | . . . Average Slot Usage (%) 96 | . 97 96 Engine 13 | . 14 13 Treads 3 | . . 3 Wheel 24 | . 28 23 Device 11 | . 11 12 Storage 14 | . 14 14 Energy Gun 2 | . 9 2 Energy Cannon 4 | . . 4 Ballistic Gun 9 | . 14 8 Ballistic Cannon 9 | . . 10 Peak Build Rating 18 | 6 7 18 Average Rating 12 | 3 6 12 On Entrance 4 | . 6 7 Naked Turns . | . . . Heaviest Build 23 | 12 15 23 Greatest Support 40 | 26 26 40 Greatest Overweight (x) 1 | . . 1 Average Overweight (x) . | . . . Largest Inventory Capacity 8 | 8 8 8 Average Capacity 7 | 6 8 8 Most Carried 8 | 6 7 8 Average Carried 7 | 3 6 7 Final Capacity 8 | 8 8 8 Final Carried 8 | 5 7 8 Class Distribution -------------------- 65% | Scavenger-Mutant 34% | Mutant Dominant Class ---------------- Mutant | -10/Materials Scavenger-Mutant | -10/Subcaves Resources | -11 -10 -10 ----------- Run | Yrd Mat Sub Matter Collected 879 | 233 14 632 Remotely . | . . . Salvage Created 437 | . 38 399 Parts 34 | . 4 30 Haulers Intercepted . | . . . Recyclers Shooed . | . . . Parts Field Recycled . | . . . Retrieved Matter . | . . . Parts Self-Destructed 11 | . . 11 Prevented . | . . . Kills | -11 -10 -10 ------- Run | Yrd Mat Sub Combat Hostiles Destroyed 20 | . 3 17 Guns 11 | . 3 8 Cannons 4 | . . 4 AOE 5 | . . 5 Classes Destroyed 2 | . 1 1 Swarmer 8 | . 3 5 Subdweller 12 | . . 12 Best Kill Streak 3 | . 3 3 Combat Bots Only 3 | . 3 3 Max Kills in Single Turn 2 | . 2 2 Gunslinging 1 | . 1 . Exploded 2 | . . 2 Melee . | . . . Uniques/NPCs Destroyed . | . . . Combat | -11 -10 -10 -------- Run | Yrd Mat Sub Hostile Shots Fired 92 | . 13 79 Missed 33 | . 4 29 Damage Taken 1326 | . 68 1258 Core 278 | . . 278 Absorbed by Shields . | . . . Core Remaining (%) 100 | 100 . . Volleys Fired 83 | . 5 78 Largest 2 | . 2 2 Hottest 119 | . 60 119 Shots Fired 146 | . 10 136 Gun 78 | . 10 68 Cannon 65 | . . 65 Launcher 3 | . . 3 Special . | . . . Kinetic 106 | . 5 101 Thermal 35 | . . 35 Explosive . | . . . Electromagnetic 5 | . 5 . Robot Hit Streak 20 | . 4 20 Robot Miss Streak 3 | . 3 2 Penetration Max . | . . . Secondary Targets 1 | . 1 . Max Gunslinging Chain 1 | . 1 . Shots Hit Robots 74 | . 6 68 Core Hits 29 | . 3 26 Critical Kills . | . . . Critical Parts Destroyed . | . . . Critical Strikes 6 | . . 6 Burn 5 | . . 5 Blast 1 | . . 1 Melee Attacks 10 | . 8 2 Impact . | . . . Slashing 10 | . 8 2 Piercing . | . . . Sneak Attacks . | . . . Combat Hostiles . | . . . Follow-up Attacks . | . . . Damage Inflicted 1515 | . 71 1444 Guns 692 | . 71 621 Cannons 583 | . . 583 Explosions 240 | . . 240 Melee . | . . . Ramming . | . . . Kinetic 1056 | . 36 1020 Thermal 424 | . . 424 Explosive . | . . . Electromagnetic 35 | . 35 . Impact . | . . . Slashing . | . . . Piercing . | . . . Highest Corruption . | . . . Average Corruption . | . . . Corruption Purged . | . . . Corruption Blocked . | . . . Overload Shots . | . . . Overflow Damage 9 | . . 9 Projectiles . | . . . Explosions 9 | . . 9 Melee . | . . . Knockbacks 3 | . . 3 Impact . | . . . Kinetic 3 | . . 3 Secondary . | . . . Self-Inflicted Damage 12 | . . 12 Shots 1 | . . 1 Rammed . | . . . Targets Rammed . | . . . Kicked . | . . . Crushed . | . . . Highest Temperature 282 | . . 282 Average Temperature 184 | . . 184 Received Heat Transfer 491 | . . 491 Siege Activations . | . . . Robots Corrupted . | . . . Combat Hostiles . | . . . Parts Fried . | . . . Impact Corruptions . | . . . Robots Melted . | . . . Combat Hostiles . | . . . Parts Melted 1 | . . 1 Heat Transferred 1369 | . . 1369 Parts Sabotaged . | . . . Parts Stolen . | . . . Parts Stripped . | . . . Power Chain Reactions . | . . . Alert | -11 -10 -10 ------- Run | Yrd Mat Sub Peak Influence 70 | . 70 . Initial . | . . . Average 24 | . 35 . Maximum Alert Level . | . . . Low Security (%) 100 | 100 100 . Level 1 . | . . . Level 2 . | . . . Level 3 . | . . . Level 4 . | . . . Level 5 . | . . . High Security . | . . . Max Security . | . . . Squads Dispatched . | . . . Investigation . | . . . Extermination . | . . . Reinforcement . | . . . Assault . | . . . Garrison . | . . . Intercept . | . . . Searches Triggered . | . . . Construction Impeded . | . . . Haulers Reinforced . | . . . Active Scanning Responses . | . . . Cargo Convoy Interrupts . | . . . Stealth | -11 -10 -10 --------- Run | Yrd Mat Sub Distress Signals . | . . . Communications Jammed . | . . . Distress Signals . | . . . Times Spotted 25 | . 3 22 Peak Tracking Total 3 | . 3 3 Tactical Retreats 2 | . . 2 Traps | -11 -10 -10 ------- Run | Yrd Mat Sub Traps Triggered 2 | . . 2 Indirectly . | . . . Trap Hack Attempts . | . . . Triggered . | . . . Disarmed . | . . . Reprogrammed . | . . . Reused . | . . . Traps Extracted . | . . . Installed 2 | . . 2 Triggered . | . . . Most Traps Carried 1 | . . 1 Machines | -11 -10 -10 ---------- Run | Yrd Mat Sub Machines Disabled 1 | . . 1 Max in Single Turn 1 | . . 1 Machines Repaired . | . . . Machines Dismantled . | . . . Machines Sabotaged . | . . . Overloaded Fab Kills . | . . . Hacking | -11 -10 -10 --------- Run | Yrd Mat Sub Machines Accessed 2 | . . 2 Terminals . | . . . Fabricators . | . . . Repair Stations . | . . . Recycling Units . | . . . Scanalyzers . | . . . Garrison Access . | . . . Total Hacks 5 | . . 5 Successful 5 | . . 5 Failed . | . . . Catastrophic . | . . . Database Lockouts . | . . . Manual . | . . . Terminals . | . . . Fabricators . | . . . Repair Stations . | . . . Recycling Units . | . . . Scanalyzers . | . . . Garrison Access . | . . . Terminal Hacks 5 | . . 5 Record 4 | . . 4 Derelict Proto ID Bank 1 | . . 1 Fabricator Hacks . | . . . Repair Station Hacks . | . . . Recycling Unit Hacks . | . . . Scanalyzer . | . . . Garrison Access Hacks . | . . . Unauthorized Hacks . | . . . Terminals . | . . . Fabricators . | . . . Repair Stations . | . . . Recycling Units . | . . . Scanalyzers . | . . . Garrison Access . | . . . Data Cores Recovered . | . . . Used . | . . . Hacking Detections . | . . . Full Trace Events . | . . . Feedback Events . | . . . Feedback Blocked . | . . . Robot Schematics Acquired . | . . . Robots Built . | . . . Authchips . | . . . Time . | . . . Total Robot Build Rating . | . . . Part Schematics Acquired . | . . . Parts Built . | . . . Authchips . | . . . Time . | . . . Total Part Build Rating . | . . . Parts Repaired . | . . . Time . | . . . Parts Recycled . | . . . Recycled Matter . | . . . Retrieved Matter . | . . . Retrieved Components . | . . . Parts Scanalyzed . | . . . Part Schematics Acquired . | . . . Parts Damaged . | . . . Bothacking | -11 -10 -10 ------------ Run | Yrd Mat Sub Used RIF Installer . | . . . Robots Hacked . | . . . Non-combat . | . . . Combat . | . . . Robot Hacks Applied . | . . . Relay Couplers Released . | . . . Fabnet Peak Effective % . | . . . Robots Rewired . | . . . Allies Hacked . | . . . Hacks Repelled . | . . . Allies | -11 -10 -10 -------- Run | Yrd Mat Sub Total Allies . | . . . Largest Group . | . . . Highest-Rated Group . | . . . Highest-Rated Ally . | . . . Total Orders . | . . . Ally Attacks . | . . . Total Damage . | . . . Kills . | . . . Allies Corrupted . | . . . Allies Melted . | . . . Intel | -11 -10 -10 ------- Run | Yrd Mat Sub Robot Analysis Total . | . . . Derelict Logs Recovered 1 | . . 1 Drone Launches . | . . . Drone Recoveries . | . . . Exploration | -11 -10 -10 ------------- Run | Yrd Mat Sub Turns Passed 1642 | 46 101 1495 Spaces Moved 1146 | 34 62 1050 Core 2 | 2 . . Treads 81 | . . 81 Legs . | . . . Wheels 1063 | 32 62 969 Hover . | . . . Flight . | . . . Fastest Speed 50 | 50 90 90 Average Speed 111 | 87 90 113 Slowest Speed 160 | 90 90 160 Overloaded Moves . | . . . Propulsion Burnouts . | . . . Robots Hopped . | . . . Cave-ins Triggered . | . . . Exploration Rate (%) 31 | 3 10 81 Regions Visited 2 Branch Regions 1 Pre-discovered Areas 1 | . . 1 Known Exits Taken . | . . . Unknown Exits Taken 2 | 1 1 . Scrap Searched 12 | . . 12 Spaces Dug . | . . . Terrain Destroyed 41 | . . 41 Melee . | . . . Projectile . | . . . AOE 41 | . . 41 Terrain Rammed . | . . . Walls Destroyed . | . . . Machines Disabled . | . . . Actions | -11 -10 -10 --------- Run | Yrd Mat Sub Total 1346 | 50 80 1216 Wait 32 | . . 32 Move 1144 | 33 61 1050 Hop . | . . . Pick Up 29 | 11 3 15 Fast Attach 1 | . . 1 Attach 13 | 6 1 6 Detach . | . . . Swap 19 | . 2 17 Drop 13 | . . 13 Fire 83 | . 5 78 Melee 10 | . 8 2 Ram . | . . . Kick . | . . . Crush . | . . . Escape Stasis . | . . . Rewire . | . . . Trap 2 | . . 2 Miscellaneous . | . . . Route ------- -11/Scrapyard -10/Materials -10/Subcaves (discovered 2 exits: *Mat x2) History --------- Turn | Location | Event 2 | -11/Scrapyard | Met Revision 17 23 | -11/Scrapyard | Discovered new exit (range 15) 47 | -11/Scrapyard | Entered Materials 141 | -10/Materials | Discovered new exit (range 4) 148 | -10/Materials | Entered Subcaves 303 | -10/Subcaves | Build established: Mutant 323 | -10/Subcaves | Shifting Twisted Machinery released Sub. Optics 330 | -10/Subcaves | Shifting Twisted Machinery released Battle Rifle 419 | -10/Subcaves | Lost 3 parts (1p1n1w) 532 | -10/Subcaves | Disturbed a concealed Subdweller 537 | -10/Subcaves | Discovered new exit (range 15) 542 | -10/Subcaves | Identified exit to Materials 586 | -10/Subcaves | Learned location of Zion (-6) 586 | -10/Subcaves | Met a Zionite searching for "candidates" 705 | -10/Subcaves | Build established: Scavenger-Mutant 708 | -10/Subcaves | Disturbed a concealed Subdweller 980 | -10/Subcaves | Shifting Twisted Machinery released Sub. Shrapnel Launcher 980 | -10/Subcaves | Shifting Twisted Machinery released Battle Rifle 1280 | -10/Subcaves | Visited 4L-MR0's lab 1296 | -10/Subcaves | Found Cargo Legs 1413 | -10/Subcaves | Shifting Twisted Machinery released Mak. Power Source 1419 | -10/Subcaves | Disturbed a concealed Subdweller 1436 | -10/Subcaves | Core integrity fell below 50% 1464 | -10/Subcaves | Shifting Twisted Machinery released Sub. Beam Cannon 1485 | -10/Subcaves | A swath of the cavern ceiling suddenly collapsed 1596 | -10/Subcaves | Visited Clippyterm 1599 | -10/Subcaves | Learned Factory fabricator intel 1638 | -10/Subcaves | A Subdweller sparked back to life 1638 | -10/Subcaves | A Subdweller sparked back to life 1638 | -10/Subcaves | A Subdweller sparked back to life 1642 | -10/Subcaves | Core integrity fell below 20% 1643 | -10/Subcaves | Destroyed by 13-YY9(R) with Subdweller Shrapnel Launcher Last Messages --------------- Data stored: Factory fabricator intel. >>Record "Hexidium" It looks like you're searching for the Unchained HQ. I could tell you where it is but then I'd have to kill you. >>Record "SUBCON Basin" It looks like you want to play with dangerous UFD tech. While I can't recommend taking subatomizers out of the Subcaves, I can warn that doing so is a one-way ticket to summoning unimaginable chaos on any area not hardened against them. That includes... just about anywhere. 01638_ MU-EVH(R) creaks and sparks as it begins to move. 01638_ 13-YY9(R) creaks and sparks as it begins to move. 01638_ JN-OQ8(R) creaks and sparks as it begins to move. 01641_ Battle Cannon destroyed. Map ----- +----------------------------------------------------+ | ?????????????????????????????????????????????????? | | ?????????????????????????????????????????????????? | | ?????????????????????????????????????????????????? | | ?????????????????????????????????????????????????? | | ?????????????????????????????????????????????????? | | ?????????????????????????????????????????????????? | | ?????????????????????????????????????????????????? | | ????????????????????????#######??????????????????? | | ?????#####??????????????#"""""#??????????????????? | | ?##?## # ##?????????????#""X""#??????????????????? | | ?#"##"""" #?????????????#" "#??????????????????? | | ###" " ""#?????????????### ###??????????????????? | | "## #####??????????## ####?????????????????? | | #""# " ## ######???### ##????????????????? | | #"#"#"" %##### #????????????????? | | #""#### #" ## != ## #????????????????? | | ## #??#####"### %[ ! #????????????????? | | "# #???????##?## ### "" #????????????????? | | """##??????????## #?# "" #????????????????? | | #"###???????????## ###"" ## ##????????????????? | | ##??????????????# ##" # #?????????????????? | | ##?????????????# ### " # #?????????????????? | | #?????????????## ### #?????????????????? | | #???????????### ## # ##????????????????? | | #???????????# "" ;; #????????????????? | | #####????????????"""" @ #????????????????? | | ?????????????????""####;; ##????????????????? | | ??????????????????"##?#; ;;# #????????????????? | | ???????????????##" # ;; ;;#####????????????????? | | ???????????????#" ##??????????????????? | | ???????????????## # # #??????????????????? | | ??????????????????### ##??????????????????? | | ????????????????? ##???????????????????? | | ?????????????# R #????????????????????? | | ?????????????# R ????????????????????? | | ?????????????# " & #R### #???????????????????? | | ?????????????# < <